[Event "22nd ETCC Women 2019"]
[Site "Batumi"]
[Date "2019.10.28"]
[Round "5.34"]
[White "Rogule, Laura"]
[Black "Sieber, Fiona"]
[Result "1-0"]
[ECO "A49"]
[WhiteElo "2269"]
[BlackElo "2252"]
[Annotator "NA"]
[PlyCount "99"]
[EventDate "2019.10.24"]
[EventType "team-tourn"]
[EventCountry "GEO"]
[SourceTitle "playchess.com"]
[Source "ChessBase"]
[SourceQuality "1"]
[WhiteTeam "Latvia"]
[BlackTeam "Germany"]
[WhiteTeamCountry "LAT"]
[BlackTeamCountry "GER"]
[TimeControl "40/5400+30:1800+30"]

1. d4 {[%emt 0:00:00]} Nf6 {[%emt 0:00:00]} 2. Nf3 {[%emt 0:00:00]} g6 {[%emt 0:00:36]} 3. g3 {[%emt 0:02:59]} Bg7 {[%emt 0:00:16]} 4. Bg2 {[%emt 0:00:11]} d5 {[%emt 0:00:07]} 5. O-O {[%emt 0:04:06]} O-O {[%emt 0:00:11]} 6. c4 {[%emt 0:02:31]} dxc4 {[%emt 0:00:11]} 7. Na3 {[%emt 0:10:03]} c3 {[%emt 0:00:07]} 8. bxc3 {[%emt 0:00:05]} c5 {[%emt 0:00:08]} 9. e3 {[%emt 0:24:30]} Nc6 {[%emt 0:01:42]} 10. Qe2 {[%emt 0:09:57]} Nd5 {[%emt 0:02:37]} 11. Bb2 {[%emt 0:04:31]} Nb6 {[%emt 0:02:18]} 12. Rad1 {[%emt 0:03:37]} Qd5 {[%emt 0:05:31]} 13. e4 {[%emt 0:19:20]} Qh5 {[%emt 0:06:01]} 14. e5 {[%emt 0:04:46]} Be6 {[%emt 0:11:48]} 15. h3 {[%emt 0:03:24]} Bxh3 {[%emt 0:06:46]} 16. Bxh3 {[%emt 0:00:11]} Qxh3 {[%emt 0:00:05]} 17. d5 {[%emt 0:00:14]} Nd8 {[%emt 0:05:58]} 18. c4 {[%emt 0:04:09]} f6 {[%emt 0:05:36]} 19. e6 {[%emt 0:03:20]} Nc8 {[%emt 0:01:06]} 20. Nb5 {[%emt 0:00:15]} a6 {[%emt 0:07:20]} 21. Nc7 {[%emt 0:00:11]} Ra7 {[%emt 0:00:58]} 22. d6 {[%emt 0:00:33]} b6 {[%emt 0:01:27]} 23. dxe7 {[%emt 0:01:16]} Nxe7 {[%emt 0:00:08]} 24. Rd7 {[%emt 0:00:20]} Ndc6 {[%emt 0:10:51]} 25. Rfd1 {[%emt 0:00:32]} Qg4 {[%emt 0:02:44]} 26. R1d6 {[%emt 0:00:49]} b5 {[%emt 0:21:25]} 27. Nd5 {[%emt 0:00:43]} Rxd7 {[%emt 0:00:43]} 28. exd7 {[%emt 0:00:25]} Nxd5 {[%emt 0:01:11]} 29. cxd5 {[%emt 0:00:29]} Nd8 {[%emt 0:00:08]} 30. Re6 {[%emt 0:00:41]} c4 {[%emt 0:01:02]} 31. Ba3 {[%emt 0:00:19]} c3 {[%emt 0:01:19]} 32. Bxf8 {[%emt 0:00:24]} Bxf8 {[%emt 0:00:42]} 33. Rxf6 {[%emt 0:00:24]} Qxd7 {[%emt 0:00:12]} 34. Qe4 {[%emt 0:00:50]} Nf7 {[%emt 0:00:46]} 35. Rxa6 {[%emt 0:00:18]} b4 {[%emt 0:00:55]} 36. Nd4 {[%emt 0:00:27]} Ng5 {[%emt 0:00:54]} 37. Qe5 {[%emt 0:00:38]} Qg4 {[%emt 0:01:26]} 38. Rf6 {[%emt 0:00:46]} c2 {[%emt 0:01:11]} 39. Nxc2 {[%emt 0:00:23]} Nf3+ {[%emt 0:00:11]} 40. Rxf3 {[%emt 0:00:00]} Qxf3 {[%emt 0:00:00]} 41. Nd4 {[%emt 0:08:39]} Qd1+ {[%emt 0:12:15]} 42. Kg2 {[%emt 0:00:10]} Qa4 {[%emt 0:00:33]} 43. Qe6+ {[%emt 0:03:31]} Kg7 {[%emt 0:01:27]} 44. d6 {[%emt 0:01:54]} Qa8+ {[%emt 0:03:19]} 45. Kg1 {[%emt 0:02:26]} Qa4 {[%emt 0:05:58]} 46. Qe5+ {[%emt 0:04:22]} Kf7 {[%emt 0:01:52]} 47. Qd5+ {[%emt 0:00:48]} Ke8 {[%emt 0:00:01]} 48. Nc6 {[%emt 0:01:19]} Kd7 {[%emt 0:00:47]} 49. Nb8+ {[%emt 0:01:56]} Kd8 {[%emt 0:00:12]} 50. Qg5+ {[%emt 0:00:26]} 1-0

[Event "22nd ETCC Women 2019"]
[Site "Batumi"]
[Date "2019.10.28"]
[Round "5.35"]
[White "Klek, Hanna Marie"]
[Black "Berzina, Ilze"]
[Result "1-0"]
[ECO "B12"]
[WhiteElo "2248"]
[BlackElo "2216"]
[Annotator "NA"]
[PlyCount "79"]
[EventDate "2019.10.24"]
[EventType "team-tourn"]
[EventCountry "GEO"]
[SourceTitle "playchess.com"]
[Source "ChessBase"]
[SourceQuality "1"]
[WhiteTeam "Germany"]
[BlackTeam "Latvia"]
[WhiteTeamCountry "GER"]
[BlackTeamCountry "LAT"]
[TimeControl "40/5400+30:1800+30"]

1. e4 {[%emt 0:00:00]} c6 {[%emt 0:00:00]} 2. d4 {[%emt 0:00:00]} d5 {[%emt 0:00:00]} 3. e5 {[%emt 0:00:00]} Bf5 {[%emt 0:00:04]} 4. h4 {[%emt 0:00:00]} h5 {[%emt 0:00:30]} 5. Bd3 {[%emt 0:00:00]} Bxd3 {[%emt 0:00:08]} 6. Qxd3 {[%emt 0:00:00]} e6 {[%emt 0:00:17]} 7. Bg5 {[%emt 0:00:06]} Be7 {[%emt 0:00:38]} 8. Nf3 {[%emt 0:00:07]} Nh6 {[%emt 0:00:42]} 9. Bxh6 {[%emt 0:00:24]} Rxh6 {[%emt 0:01:22]} 10. Nbd2 {[%emt 0:00:26]} Nd7 {[%emt 0:16:39]} 11. g3 {[%emt 0:02:21]} c5 {[%emt 0:04:47]} 12. c4 {[%emt 0:02:25]} dxc4 {[%emt 0:16:59]} 13. Nxc4 {[%emt 0:08:23]} b5 {[%emt 0:00:36]} 14. Ncd2 {[%emt 0:02:35]} c4 {[%emt 0:00:14]} 15. Qe2 {[%emt 0:05:21]} Nb6 {[%emt 0:11:44]} 16. O-O {[%emt 0:02:32]} Rg6 {[%emt 0:06:09]} 17. Ne4 {[%emt 0:04:11]} Nd5 {[%emt 0:19:36]} 18. Nfg5 {[%emt 0:09:30]} Bxg5 {[%emt 0:01:55]} 19. hxg5 {[%emt 0:00:08]} Rxg5 {[%emt 0:00:19]} 20. Nxg5 {[%emt 0:07:48]} Qxg5 {[%emt 0:00:02]} 21. a4 {[%emt 0:01:06]} h4 {[%emt 0:00:45]} 22. g4 {[%emt 0:11:20]} b4 {[%emt 0:04:40]} 23. f4 {[%emt 0:01:51]} Qg6 {[%emt 0:00:14]} 24. Rf2 {[%emt 0:04:49]} Rc8 {[%emt 0:03:31]} 25. f5 {[%emt 0:10:05]} exf5 {[%emt 0:02:22]} 26. Rxf5 {[%emt 0:00:33]} c3 {[%emt 0:03:41]} 27. bxc3 {[%emt 0:08:13]} Nxc3 28. Qf3 {[%emt 0:02:25]} b3 {[%emt 0:02:17]} 29. e6 {[%emt 0:00:53]} b2 {[%emt 0:00:26]} 30. exf7+ {[%emt 0:02:19]} Kf8 {[%emt 0:00:06]} 31. Rf1 {[%emt 0:02:22]} b1=Q {[%emt 0:00:15]} 32. Rxb1 {[%emt 0:00:29]} Nxb1 {[%emt 0:00:06]} 33. Rh5 {[%emt 0:05:07]} Rc1+ {[%emt 0:04:12]} 34. Kg2 {[%emt 0:00:08]} Rc2+ {[%emt 0:00:43]} 35. Kh3 {[%emt 0:00:30]} Qf6 {[%emt 0:00:26]} 36. Rh8+ {[%emt 0:02:02]} Kxf7 {[%emt 0:00:02]} 37. Qd5+ {[%emt 0:00:06]} Qe6 {[%emt 0:00:50]} 38. Rf8+ {[%emt 0:00:12]} Kxf8 {[%emt 0:00:19]} 39. Qxe6 {[%emt 0:00:06]} Nd2 {[%emt 0:00:44]} 40. Qf5+ {[%emt 0:00:00]} 1-0

[Event "22nd ETCC Women 2019"]
[Site "Batumi"]
[Date "2019.10.28"]
[Round "5.36"]
[White "Limanovska, Elizabete"]
[Black "Osmanodja, Filiz"]
[Result "1/2-1/2"]
[ECO "B90"]
[WhiteElo "2186"]
[BlackElo "2225"]
[Annotator "RC"]
[PlyCount "112"]
[EventDate "2019.10.24"]
[EventType "team-tourn"]
[EventCountry "GEO"]
[SourceTitle "playchess.com"]
[Source "ChessBase"]
[SourceQuality "1"]
[WhiteTeam "Latvia"]
[BlackTeam "Germany"]
[WhiteTeamCountry "LAT"]
[BlackTeamCountry "GER"]
[TimeControl "40/5400+30:1800+30"]

1. e4 {[%emt 0:00:00]} c5 {[%emt 0:00:00]} 2. Nf3 {[%emt 0:00:00]} d6 {[%emt 0:00:00]} 3. d4 {[%emt 0:00:00]} Nf6 {[%emt 0:00:00]} 4. Nc3 {[%emt 0:00:00]} cxd4 {[%emt 0:00:00]} 5. Nxd4 {[%emt 0:00:00]} a6 {[%emt 0:00:00]} 6. Be3 {[%emt 0:00:14]} e6 {[%emt 0:00:10]} 7. f3 {[%emt 0:04:04]} b5 {[%emt 0:00:15]} 8. Qd2 {[%emt 0:01:43]} Nbd7 {[%emt 0:02:42]} 9. g4 {[%emt 0:05:51]} b4 {[%emt 0:01:43]} 10. Nce2 {[%emt 0:14:05]} h6 {[%emt 0:00:43]} 11. Ng3 {[%emt 0:17:47]} Qc7 {[%emt 0:05:25]} 12. O-O-O {[%emt 0:08:16]} d5 {[%emt 0:14:31]} 13. exd5 {[%emt 0:03:49]} Nxd5 {[%emt 0:00:24]} 14. Ne4 {[%emt 0:03:44]} Nxe3 {[%emt 0:06:33]} 15. Qxe3 {[%emt 0:00:06]} Be7 {[%emt 0:04:24]} 16. h4 {[%emt 0:04:30]} Nb6 {[%emt 0:08:03]} 17. Kb1 {[%emt 0:06:41]} Nd5 {[%emt 0:04:16]} 18. Qe1 {[%emt 0:03:53]} Bb7 {[%emt 0:05:16]} 19. Bd3 {[%emt 0:02:23]} Nf4 {[%emt 0:09:14]} 20. g5 {[%emt 0:03:08]} hxg5 {[%emt 0:09:07]} 21. hxg5 {[%emt 0:00:37]} Rxh1 {[%emt 0:01:57]} 22. Qxh1 {[%emt 0:00:05]} O-O-O {[%emt 0:00:33]} 23. Nb3 {[%emt 0:03:27]} Kb8 {[%emt 0:12:12]} 24. Qg1 {[%emt 0:02:55]} Rd5 {[%emt 0:01:27]} 25. g6 {[%emt 0:02:38]} Nxg6 {[%emt 0:04:49]} 26. Ned2 {[%emt 0:00:06]} Rg5 {[%emt 0:01:43]} 27. Qf1 {[%emt 0:01:52]} a5 {[%emt 0:01:53]} 28. Nc4 {[%emt 0:04:25]} a4 {[%emt 0:02:17]} 29. Nba5 {[%emt 0:01:28]} Bd5 {[%emt 0:01:18]} 30. Be4 {[%emt 0:02:36]} Nf4 {[%emt 0:00:58]} 31. Qh1 {[%emt 0:01:45]} Rh5 {[%emt 0:01:50]} 32. Qg1 {[%emt 0:00:54]} Rg5 {[%emt 0:00:45]} 33. Qe3 {[%emt 0:01:48]} Bc5 {[%emt 0:00:48]} 34. Qe1 {[%emt 0:00:14]} Rg1 {[%emt 0:00:35]} 35. Qd2 {[%emt 0:00:57]} Rxd1+ {[%emt 0:00:13]} 36. Qxd1 {[%emt 0:00:02]} f5 {[%emt 0:00:48]} 37. Bd3 {[%emt 0:00:48]} Ba7 {[%emt 0:01:01]} 38. Qh1 {[%emt 0:01:03]} Bd4 {[%emt 0:00:25]} 39. Qh8+ {[%emt 0:00:39]} Qc8 {[%emt 0:00:12]} 40. Qh2 {[%emt 0:00:00]} Qc7 {[%emt 0:00:00]} 41. Qd2 {[%emt 0:07:35]} Bc5 {[%emt 0:08:25]} 42. Bf1 {[%emt 0:07:31]} g5 {[%emt 0:07:48]} 43. c3 {[%emt 0:00:45]} Bxf3 {[%emt 0:09:40]} 44. cxb4 {[%emt 0:01:21]} Be4+ {[%emt 0:00:02]} 45. Ka1 {[%emt 0:00:29]} Be7 {[%emt 0:02:02]} 46. b5 {[%emt 0:08:08]} Qd8 {[%emt 0:01:41]} 47. Qc1 {[%emt 0:00:53]} Qd4 {[%emt 0:02:17]} 48. a3 {[%emt 0:04:41]} Qc5 {[%emt 0:01:13]} 49. Qc3 {[%emt 0:02:03]} Qxb5 {[%emt 0:00:25]} 50. Nd2 {[%emt 0:01:07]} Ne2 {[%emt 0:01:20]} 51. Bxe2 {[%emt 0:00:50]} Qxe2 {[%emt 0:00:04]} 52. Nxe4 {[%emt 0:01:01]} Qd1+ {[%emt 0:01:07]} 53. Ka2 {[%emt 0:00:11]} Qd5+ {[%emt 0:00:04]} 54. Ka1 {[%emt 0:00:18]} Qd1+ {[%emt 0:01:20]} 55. Ka2 {[%emt 0:00:02]} Qd5+ {[%emt 0:00:05]} 56. Ka1 {[%emt 0:00:04]} Qd1+ {[%emt 0:01:24]} 1/2-1/2

[Event "22nd ETCC Women 2019"]
[Site "Batumi"]
[Date "2019.10.30"]
[Round "6.1"]
[White "Hoolt, Sarah"]
[Black "Repkova, Eva"]
[Result "1/2-1/2"]
[ECO "B45"]
[WhiteElo "2323"]
[BlackElo "2315"]
[Annotator "NA"]
[PlyCount "60"]
[EventDate "2019.10.24"]
[EventType "team-tourn"]
[EventCountry "GEO"]
[SourceTitle "playchess.com"]
[Source "ChessBase"]
[SourceQuality "1"]
[WhiteTeam "Germany"]
[BlackTeam "Slovakia"]
[BlackTeamCountry "SVK"]
[TimeControl "40/5400+30:1800+30"]

1. e4 {[%emt 0:00:00]} c5 {[%emt 0:00:00]} 2. Nc3 {[%emt 0:00:00]} e6 {[%emt 0:00:32]} 3. Nf3 {[%emt 0:00:37]} Nc6 {[%emt 0:03:00]} 4. d4 {[%emt 0:00:16]} cxd4 {[%emt 0:00:03]} 5. Nxd4 {[%emt 0:00:04]} Nf6 {[%emt 0:00:22]} 6. Ndb5 {[%emt 0:06:37]} Bc5 {[%emt 0:00:08]} 7. Nd6+ {[%emt 0:04:30]} Ke7 {[%emt 0:00:06]} 8. Bf4 {[%emt 0:00:38]} e5 {[%emt 0:01:13]} 9. Nf5+ {[%emt 0:00:32]} Kf8 {[%emt 0:00:12]} 10. Bg5 {[%emt 0:04:42]} h6 {[%emt 0:18:30]} 11. Bxf6 {[%emt 0:01:33]} Qxf6 {[%emt 0:00:15]} 12. Nd5 {[%emt 0:00:48]} Qd8 {[%emt 0:02:07]} 13. c3 {[%emt 0:04:35]} a5 {[%emt 0:03:24]} 14. Bc4 {[%emt 0:02:19]} d6 {[%emt 0:05:24]} 15. O-O {[%emt 0:03:13]} Be6 {[%emt 0:05:42]} 16. a4 {[%emt 0:14:53]} Kg8 {[%emt 0:09:15]} 17. Qb3 {[%emt 0:02:49]} Rb8 {[%emt 0:07:02]} 18. Rad1 {[%emt 0:02:07]} Kh7 {[%emt 0:05:22]} 19. Nde3 {[%emt 0:03:30]} Re8 {[%emt 0:09:44]} 20. Rd3 {[%emt 0:02:37]} Na7 {[%emt 0:05:16]} 21. Qd1 {[%emt 0:19:16]} Nc8 {[%emt 0:03:06]} 22. Bb5 {[%emt 0:02:43]} Rf8 {[%emt 0:00:48]} 23. Nd5 {[%emt 0:06:13]} Bxd5 {[%emt 0:11:18]} 24. Rxd5 {[%emt 0:01:40]} g6 {[%emt 0:02:36]} 25. Ne3 {[%emt 0:02:19]} Qh4 {[%emt 0:02:45]} 26. g3 {[%emt 0:03:36]} Qg5 {[%emt 0:00:07]} 27. h4 {[%emt 0:04:51]} Qf6 {[%emt 0:00:18]} 28. Nc4 {[%emt 0:01:56]} b6 {[%emt 0:02:17]} 29. Rd3 {[%emt 0:01:18]} Qe6 {[%emt 0:01:18]} 30. Nd2 {[%emt 0:02:41]} f5 {[%emt 0:00:55]} 1/2-1/2

[Event "22nd ETCC Women 2019"]
[Site "Batumi"]
[Date "2019.10.30"]
[Round "6.2"]
[White "Lagno, Kateryna"]
[Black "Fataliyeva, Ulviyya"]
[Result "1/2-1/2"]
[ECO "B19"]
[WhiteElo "2549"]
[BlackElo "2368"]
[Annotator "ChessBase"]
[PlyCount "172"]
[EventDate "2019.10.24"]
[EventType "team-tourn"]
[EventCountry "GEO"]
[SourceTitle "playchess.com"]
[Source "ChessBase"]
[SourceQuality "1"]
[WhiteTeam "Russia"]
[BlackTeam "Azerbaijan"]
[WhiteTeamCountry "RUS"]
[BlackTeamCountry "AZE"]
[TimeControl "40/5400+30:1800+30"]

1. e4 {[%emt 0:00:00]} c6 {[%emt 0:00:00]} 2. d4 {[%emt 0:00:00]} d5 {[%emt 0:00:00]} 3. Nd2 {[%emt 0:00:08]} dxe4 {[%emt 0:00:00]} 4. Nxe4 {[%emt 0:00:04]} Bf5 {[%emt 0:00:00]} 5. Ng3 {[%emt 0:00:24]} Bg6 {[%emt 0:00:00]} 6. h4 {[%emt 0:01:04]} h6 {[%emt 0:00:00]} 7. Nf3 {[%emt 0:00:11]} Nd7 {[%emt 0:00:03]} 8. Bd3 {[%emt 0:00:40]} Bxd3 {[%emt 0:00:06]} 9. Qxd3 {[%emt 0:00:03]} Ngf6 {[%emt 0:00:07]} 10. Bf4 {[%emt 0:03:40]} Qa5+ {[%emt 0:00:07]} 11. Bd2 {[%emt 0:00:48]} Qc7 {[%emt 0:00:04]} 12. O-O-O {[%emt 0:04:51]} e6 {[%emt 0:00:05]} 13. Ne4 {[%emt 0:05:02]} Nxe4 {[%emt 0:00:16]} 14. Qxe4 {[%emt 0:00:04]} Nf6 {[%emt 0:00:07]} 15. Qe2 {[%emt 0:01:44]} O-O-O {[%emt 0:00:07]} 16. g3 {[%emt 0:00:41]} Bd6 {[%emt 0:01:26]} 17. c4 {[%emt 0:01:48]} c5 {[%emt 0:06:48]} 18. Bc3 {[%emt 0:01:47]} cxd4 {[%emt 0:07:04]} 19. Nxd4 {[%emt 0:06:31]} a6 {[%emt 0:01:27]} 20. Kb1 {[%emt 0:10:02]} Rhe8 {[%emt 0:05:51]} 21. Rd2 {[%emt 0:11:52]} Bf8 {[%emt 0:19:21]} 22. Rhd1 {[%emt 0:06:11]} e5 {[%emt 0:12:03]} 23. Nf3 {[%emt 0:05:48]} Rxd2 {[%emt 0:03:35]} 24. Nxd2 {[%emt 0:00:14]} Qd7 {[%emt 0:08:35]} 25. Ne4 {[%emt 0:03:35]} Qf5 {[%emt 0:01:19]} 26. f3 {[%emt 0:00:15]} h5 {[%emt 0:02:40]} 27. Qd3 {[%emt 0:05:15]} Nxe4 {[%emt 0:01:44]} 28. fxe4 {[%emt 0:00:23]} Qe6 {[%emt 0:02:28]} 29. Qf3 {[%emt 0:09:34]} Rd8 {[%emt 0:11:54]} 30. Rxd8+ {[%emt 0:06:43]} Kxd8 {[%emt 0:00:01]} 31. Qxh5 {[%emt 0:02:50]} Qxc4 {[%emt 0:00:13]} 32. Qxe5 {[%emt 0:03:31]} Qf1+ {[%emt 0:02:09]} 33. Kc2 {[%emt 0:00:03]} Qe2+ {[%emt 0:00:18]} 34. Bd2 {[%emt 0:01:08]} Qc4+ {[%emt 0:00:12]} 35. Kd1 {[%emt 0:04:05]} Qf1+ {[%emt 0:00:59]} 36. Be1 {[%emt 0:01:20]} Qd3+ {[%emt 0:00:16]} 37. Kc1 {[%emt 0:00:50]} Qc4+ {[%emt 0:00:11]} 38. Bc3 {[%emt 0:00:53]} Qf1+ {[%emt 0:00:10]} 39. Kd2 {[%emt 0:00:50]} Qf2+ {[%emt 0:00:31]} 40. Kd3 {[%emt 0:00:00]} Qf1+ {[%emt 0:00:00]} 41. Kc2 {[%emt 0:02:57]} Qe2+ {[%emt 0:01:40]} 42. Bd2 {[%emt 0:01:17]} Qc4+ {[%emt 0:00:05]} 43. Qc3 {[%emt 0:01:16]} Qxe4+ {[%emt 0:00:08]} 44. Qd3+ {[%emt 0:00:02]} Qxd3+ {[%emt 0:00:06]} 45. Kxd3 {[%emt 0:00:01]} Kd7 {[%emt 0:04:55]} 46. Ke4 {[%emt 0:01:46]} Ke6 {[%emt 0:02:50]} 47. g4 {[%emt 0:02:21]} g6 {[%emt 0:04:05]} 48. Bc3 {[%emt 0:04:48]} f5+ {[%emt 0:06:48]} 49. gxf5+ {[%emt 0:01:33]} gxf5+ {[%emt 0:00:01]} 50. Kf3 {[%emt 0:00:05]} b5 {[%emt 0:05:26]} 51. h5 {[%emt 0:02:40]} Bh6 {[%emt 0:01:41]} 52. Bd4 {[%emt 0:00:11]} a5 {[%emt 0:00:43]} 53. Be3 {[%emt 0:02:29]} Bg7 {[%emt 0:00:27]} 54. b3 {[%emt 0:01:43]} a4 {[%emt 0:00:15]} 55. Bf4 {[%emt 0:04:17]} axb3 {[%emt 0:05:44]} 56. axb3 {[%emt 0:00:02]} Kf7 {[%emt 0:01:35]} 57. Bg5 {[%emt 0:04:45]} Be5 {[%emt 0:00:46]} 58. Bf4 {[%emt 0:01:38]} Bg7 {[%emt 0:00:05]} 59. Ke3 {[%emt 0:01:49]} Kg8 {[%emt 0:06:56]} 60. Bc7 {[%emt 0:01:24]} Kh7 {[%emt 0:00:39]} 61. Bf4 {[%emt 0:01:02]} Bf6 {[%emt 0:01:51]} 62. Kd3 {[%emt 0:00:33]} Bg7 {[%emt 0:00:39]} 63. Ke2 {[%emt 0:02:04]} Bf6 {[%emt 0:01:01]} 64. Kf3 {[%emt 0:00:05]} Bg7 {[%emt 0:01:10]} 65. Kg3 {[%emt 0:02:07]} Bf6 {[%emt 0:01:17]} 66. Bd2 {[%emt 0:00:50]} Be5+ {[%emt 0:00:14]} 67. Kh4 {[%emt 0:00:25]} Bf6+ {[%emt 0:00:14]} 68. Bg5 {[%emt 0:01:13]} Be5 {[%emt 0:00:56]} 69. Be7 {[%emt 0:01:05]} Bf4 {[%emt 0:00:09]} 70. Bg5 {[%emt 0:00:40]} Be5 {[%emt 0:00:06]} 71. Bd2 {[%emt 0:00:58]} Bf6+ {[%emt 0:00:05]} 72. Kg3 {[%emt 0:00:08]} Be5+ {[%emt 0:00:33]} 73. Kf3 {[%emt 0:00:07]} Bg7 {[%emt 0:01:20]} 74. Bg5 {[%emt 0:01:36]} Be5 {[%emt 0:00:05]} 75. Ke2 {[%emt 0:00:26]} Bg7 {[%emt 0:00:41]} 76. Bf4 {[%emt 0:00:24]} Bb2 {[%emt 0:01:06]} 77. Kd3 {[%emt 0:00:44]} Bg7 {[%emt 0:00:28]} 78. Ke2 {[%emt 0:00:32]} Bb2 {[%emt 0:00:08]} 79. Kf2 {[%emt 0:00:23]} Bd4+ {[%emt 0:01:09]} 80. Be3 {[%emt 0:00:40]} Be5 {[%emt 0:00:19]} 81. Kf3 {[%emt 0:00:19]} Kg7 {[%emt 0:01:09]} 82. Bf4 {[%emt 0:00:17]} Bf6 {[%emt 0:00:51]} 83. Bc1 {[%emt 0:01:32]} Be5 {[%emt 0:00:11]} 84. Bd2 {[%emt 0:00:18]} Kh7 {[%emt 0:00:31]} 85. Bg5 {[%emt 0:00:49]} Kg7 {[%emt 0:00:36]} 86. Bf4 {[%emt 0:01:04]} Bf6 {[%emt 0:00:08] Ke4} 1/2-1/2

[Event "22nd ETCC Women 2019"]
[Site "Batumi"]
[Date "2019.10.30"]
[Round "6.2"]
[White "Hagarova, Zuzana"]
[Black "Klek, Hanna Marie"]
[Result "0-1"]
[ECO "B13"]
[WhiteElo "2295"]
[BlackElo "2248"]
[Annotator "NA"]
[PlyCount "88"]
[EventDate "2019.10.24"]
[EventType "team-tourn"]
[EventCountry "GEO"]
[SourceTitle "playchess.com"]
[Source "ChessBase"]
[SourceQuality "1"]
[WhiteTeam "Slovakia"]
[BlackTeam "Germany"]
[WhiteTeamCountry "SVK"]
[BlackTeamCountry "GER"]
[TimeControl "40/5400+30:1800+30"]

1. e4 {[%emt 0:00:00]} c6 {[%emt 0:00:00]} 2. d4 {[%emt 0:00:00]} d5 {[%emt 0:00:00]} 3. exd5 {[%emt 0:00:04]} cxd5 {[%emt 0:00:00]} 4. Bd3 {[%emt 0:00:16]} Nc6 {[%emt 0:00:00]} 5. c3 {[%emt 0:00:12]} Nf6 {[%emt 0:00:03]} 6. Bf4 {[%emt 0:00:27]} Bg4 {[%emt 0:00:28]} 7. Qb3 {[%emt 0:00:16]} e5 {[%emt 0:00:20]} 8. h3 {[%emt 0:00:28]} Na5 {[%emt 0:00:19]} 9. Qc2 {[%emt 0:02:46]} exf4 {[%emt 0:00:09]} 10. hxg4 {[%emt 0:00:09]} Nxg4 {[%emt 0:00:07]} 11. Nd2 {[%emt 0:04:11]} g6 {[%emt 0:05:30]} 12. Ne2 {[%emt 0:14:56]} Bd6 {[%emt 0:02:12]} 13. Qa4+ {[%emt 0:33:10]} Kf8 {[%emt 0:07:52]} 14. b4 {[%emt 0:14:45]} Nc6 {[%emt 0:14:15]} 15. Qb5 {[%emt 0:00:37]} Ne7 {[%emt 0:00:20]} 16. Qxb7 {[%emt 0:00:36]} Kg7 {[%emt 0:01:19]} 17. Qa6 {[%emt 0:05:17]} Qd7 {[%emt 0:01:39]} 18. Bb5 {[%emt 0:02:36]} Qc7 {[%emt 0:06:02]} 19. Kf1 {[%emt 0:06:34]} h5 {[%emt 0:03:09]} 20. Re1 {[%emt 0:03:56]} Rab8 {[%emt 0:09:30]} 21. Ba4 {[%emt 0:00:59]} Nf5 {[%emt 0:04:06]} 22. Kg1 {[%emt 0:02:14]} Rb6 {[%emt 0:07:51]} 23. Qd3 {[%emt 0:00:47]} Nf6 {[%emt 0:03:45]} 24. Bc2 {[%emt 0:02:07]} Re8 {[%emt 0:00:48]} 25. Qf3 {[%emt 0:02:21]} Nxd4 {[%emt 0:00:48]} 26. Nxd4 {[%emt 0:02:23]} Rxe1+ {[%emt 0:00:06]} 27. Nf1 {[%emt 0:00:09]} Be5 {[%emt 0:02:20]} 28. Qd3 {[%emt 0:00:57]} Ne4 {[%emt 0:00:49]} 29. Nf3 {[%emt 0:00:40]} Bxc3 {[%emt 0:05:34]} 30. Nxe1 {[%emt 0:00:23]} Bxe1 {[%emt 0:00:07]} 31. Qd4+ {[%emt 0:00:07]} Nf6 {[%emt 0:00:07]} 32. Bb3 {[%emt 0:01:03]} Rxb4 {[%emt 0:01:58]} 33. Qd1 {[%emt 0:00:27]} Re4 {[%emt 0:03:15]} 34. Rh3 {[%emt 0:00:33]} Qc5 {[%emt 0:01:47]} 35. Rf3 {[%emt 0:00:13]} Ba5 {[%emt 0:04:55]} 36. Qd3 {[%emt 0:00:47]} Bb6 {[%emt 0:01:35]} 37. g3 {[%emt 0:00:25]} fxg3 {[%emt 0:02:24]} 38. Nxg3 {[%emt 0:00:06]} Re5 {[%emt 0:01:07]} 39. Kg2 {[%emt 0:00:53]} Qb4 {[%emt 0:02:10]} 40. Rxf6 {[%emt 0:00:00]} Kxf6 {[%emt 0:00:00]} 41. Bxd5 {[%emt 0:00:45]} Kg7 {[%emt 0:02:29]} 42. Bf3 {[%emt 0:07:34]} Qd4 {[%emt 0:02:40]} 43. Qc2 {[%emt 0:01:00]} Rg5 {[%emt 0:01:24]} 44. Kf1 {[%emt 0:01:46]} Rb5 {[%emt 0:00:32]} 0-1